bitfinex/quotes_BTCUSD_20251027
["timestamp","ask_amount","ask_price","bid_price","bid_amount"]
[1761552015935,1.2295879,115530.0,115520.0,0.00081129]
[1761552016486,1.20361153,115530.0,115520.0,0.00081129]
[1761552017255,0.7721306,115530.0,115520.0,0.00081129]
[1761552017684,1.20361153,115530.0,115520.0,0.00081129]
[1761552019726,0.7721306,115530.0,115520.0,0.00081129]
[1761552019949,1.29343054,115530.0,115520.0,0.00081129]
[1761552020454,0.86194961,115530.0,115520.0,0.00081129]
[1761552020661,1.29343054,115530.0,115520.0,0.00081129]
[1761552021118,1.31074054,115530.0,115520.0,0.00081129]
[1761552022120,1.36610054,115530.0,115520.0,0.00081129]
[1761552022328,1.38930817,115530.0,115520.0,0.00081129]
[1761552022528,2.00564468,115530.0,115520.0,0.00081129]
[1761552022730,1.63941868,115530.0,115520.0,0.00081129]
[1761552022933,1.60887268,115530.0,115520.0,0.00081129]
[1761552023140,1.42025168,115530.0,115520.0,0.00081129]
[1761552023345,1.41825168,115530.0,115520.0,0.00081129]
[1761552023548,1.42025168,115530.0,115520.0,0.00081129]
[1761552023972,1.44623044,115530.0,115520.0,0.00081129]
[1761552024175,1.44423044,115530.0,115520.0,0.00081129]
[1761552024379,0.780326,115530.0,115520.0,0.00081129]
[1761552024635,1.41928693,115530.0,115520.0,0.00081129]
[1761552024969,1.41728693,115530.0,115520.0,0.00081129]
[1761552025306,1.41928693,115530.0,115520.0,0.00081129]
[1761552027131,1.45023044,115530.0,115520.0,0.00081129]
[1761552031177,0.53045518,115510.0,115500.0,9.01573665]
[1761552031385,1.29281134,115510.0,115500.0,9.01573665]
[1761552031784,1.29281134,115510.0,115500.0,9.01614806]
[1761552032001,1.31879185,115510.0,115500.0,9.01614806]
[1761552032452,1.38576671,115510.0,115500.0,9.01614806]
[1761552036007,0.95428578,115510.0,115500.0,9.01614806]
[1761552036209,1.38576671,115510.0,115500.0,9.01614806]
[1761552036412,0.68851544,115510.0,115500.0,9.01614806]
[1761552036654,0.87745905,115510.0,115500.0,9.01614806]
[1761552037785,0.87745905,115510.0,115500.0,9.01814806]
[1761552038040,0.87745905,115510.0,115500.0,9.01614806]
[1761552038282,0.87545905,115510.0,115500.0,9.01614806]
[1761552038492,0.86745253,115510.0,115500.0,9.01814806]
[1761552038629,0.86845253,115510.0,115500.0,9.01814806]
[1761552039127,0.86745253,115510.0,115500.0,9.01814806]
[1761552039595,0.86845253,115510.0,115500.0,9.01814806]
[1761552041342,1.35406172,115510.0,115500.0,9.01814806]
[1761552041486,1.4202504,115510.0,115500.0,9.01814806]
[1761552042774,1.43878658,115510.0,115500.0,9.01814806]
[1761552043951,0.26396419,115510.0,115500.0,9.50375725]
[1761552044157,0.41608419,115510.0,115500.0,9.50375725]
[1761552044353,0.09081901,115510.0,115500.0,9.67691742]
[1761552044968,0.26396419,115510.0,115500.0,9.50375725]
[1761552045414,0.26396419,115510.0,115500.0,9.01814806]
[1761552045636,0.26396419,115510.0,115500.0,9.50375725]
[1761552046616,0.26396419,115510.0,115500.0,9.67691742]
[1761552046818,0.26396419,115510.0,115500.0,9.70288988]
[1761552047691,0.09081901,115510.0,115500.0,10.18849907]
[1761552048139,0.001,115510.0,115500.0,10.18849907]
[1761552048310,0.001,115510.0,115500.0,10.24389907]
[1761552048723,0.5316376,115540.0,115520.0,0.17312219]
[1761552048923,0.62145661,115540.0,115530.0,0.48560919]
[1761552049458,0.62102373,115540.0,115530.0,0.48560919]
[1761552050186,0.26291923,115540.0,115520.0,0.35124851]
[1761552050414,0.28144312,115540.0,115530.0,0.48960919]
[1761552050593,0.28144312,115540.0,115530.0,0.004]
[1761552050807,0.76705231,115540.0,115530.0,0.004]
[1761552051208,0.76805231,115540.0,115530.0,0.004]
[1761552051688,0.76705231,115540.0,115530.0,0.004]
[1761552052088,0.76805231,115540.0,115530.0,0.004]
[1761552052807,0.74952842,115540.0,115530.0,0.004]
[1761552057193,0.17313019,115520.0,115510.0,0.20797651]
[1761552057392,0.2629492,115520.0,115510.0,0.20797651]
[1761552059196,0.8383774,115520.0,115510.0,0.00320569]
[1761552059711,0.8393774,115520.0,115510.0,0.00320569]
[1761552059910,0.74955839,115520.0,115510.0,0.00320569]
[1761552060444,1.08955839,115520.0,115510.0,0.00320569]
[1761552061510,1.15477427,115520.0,115510.0,0.00320569]
[1761552061652,1.08955839,115520.0,115510.0,0.00320569]
[1761552066256,1.15380719,115520.0,115510.0,0.00320569]
[1761552066476,1.2436262,115520.0,115510.0,0.00320569]
[1761552066951,1.72923539,115520.0,115510.0,0.00320569]
[1761552067358,1.7552159,115520.0,115510.0,0.00320569]
[1761552067492,1.7552159,115520.0,115510.0,0.00020569]
[1761552067697,0.17314518,115510.0,115500.0,9.01573665]
[1761552067904,1.49780472,115510.0,115500.0,9.01573665]
[1761552068103,1.47616158,115510.0,115500.0,9.01573665]
[1761552068308,1.47616158,115510.0,115500.0,9.01594236]
[1761552068981,1.47816158,115510.0,115500.0,9.01594236]
[1761552069432,0.26496419,115510.0,115500.0,9.01594236]
[1761552069607,0.95809338,115510.0,115500.0,9.01594236]
[1761552070177,0.96009338,115510.0,115500.0,9.01594236]
[1761552072285,0.96033338,115510.0,115500.0,9.01594236]
[1761552072794,1.30033338,115510.0,115500.0,9.01594236]
[1761552073024,0.66236419,115510.0,115500.0,9.01594236]
[1761552073234,0.81472419,115510.0,115500.0,9.01594236]
[1761552074061,0.81072419,115510.0,115500.0,9.01594236]
[1761552074471,0.81172419,115510.0,115500.0,9.01594236]
[1761552074848,0.81072419,115510.0,115500.0,9.01594236]
[1761552075047,0.42981901,115510.0,115500.0,9.01594236]
[1761552075216,0.24317901,115510.0,115500.0,9.67471172]
[1761552075676,0.09081901,115510.0,115500.0,10.16032091]
[1761552075821,0.09081901,115510.0,115500.0,9.18910253]
[1761552076028,0.08981901,115510.0,115500.0,10.16032091]
[1761552076234,0.08981901,115510.0,115500.0,10.18629274]
[1761552076648,0.08981901,115510.0,115500.0,10.19229274]
[1761552077048,0.08981901,115510.0,115500.0,9.70668355]
[1761552077223,0.08981901,115510.0,115500.0,9.22107436]
[1761552077526,0.08981901,115510.0,115500.0,9.70668355]
[1761552077689,0.09081901,115510.0,115500.0,9.22107436]
[1761552078001,0.08981901,115510.0,115500.0,9.22107436]
[1761552078200,0.08981901,115510.0,115500.0,9.68080777]
[1761552078442,0.09081901,115510.0,115500.0,9.68080777]
[1761552078748,0.09081901,115510.0,115500.0,9.22107436]
[1761552081317,0.09081901,115510.0,115500.0,9.68080777]
[1761552081485,0.09081901,115510.0,115500.0,9.65483594]
[1761552082017,0.17311783,115530.0,115520.0,0.17313019]
[1761552082212,0.08981901,115530.0,115520.0,0.64157675]
[1761552082414,0.08981901,115530.0,115520.0,0.6328636]
[1761552082770,0.3262995,115550.0,115540.0,0.17310022]
[1761552083156,0.24221901,115550.0,115540.0,0.18180589]
[1761552083366,0.08981901,115550.0,115540.0,0.18180589]
[1761552083569,0.08981901,115550.0,115540.0,0.6415393]
[1761552083776,0.08981901,115550.0,115540.0,0.17310022]
[1761552084020,0.08981901,115550.0,115540.0,0.18480589]
[1761552085470,0.09081901,115550.0,115540.0,0.18480589]
[1761552086060,0.26390425,115550.0,115540.0,0.18480589]
[1761552090243,0.26390425,115550.0,115540.0,0.17610022]
[1761552092863,0.26390425,115550.0,115540.0,0.003]
[1761552093077,0.26390425,115550.0,115540.0,0.15532]
[1761552093277,0.26390425,115550.0,115540.0,0.32842022]
[1761552093500,0.26390425,115550.0,115540.0,0.003]
[1761552093701,0.78271441,115550.0,115540.0,0.003]
[1761552094096,0.322981,115550.0,115540.0,0.003]
[1761552094495,0.78271441,115550.0,115540.0,0.003]
[1761552094795,0.72363766,115550.0,115540.0,0.003]
[1761552095099,1.06363766,115550.0,115540.0,0.003]
[1761552096680,1.11899766,115550.0,115540.0,0.003]
[1761552098477,1.18348284,115550.0,115540.0,0.003]
[1761552099517,1.20199365,115550.0,115540.0,0.003]
[1761552099738,1.29181266,115550.0,115540.0,0.003]
[1761552099940,1.26367022,115550.0,115540.0,0.003]
[1761552100884,1.26267022,115550.0,115540.0,0.003]
[1761552101281,1.26367022,115550.0,115540.0,0.003]
[1761552101788,0.17314029,115520.0,115500.0,9.19776053]
[1761552102155,0.08981901,115510.0,115500.0,9.19776053]
[1761552102357,0.26296419,115510.0,115500.0,9.01594236]
[1761552102706,0.69455516,115510.0,115500.0,9.01594236]
[1761552102917,0.26296419,115510.0,115500.0,9.01594236]
[1761552103456,0.26296419,115510.0,115500.0,9.01894236]
[1761552105418,0.26296419,115510.0,115500.0,9.01594236]
[1761552106114,0.32733864,115510.0,115500.0,9.01594236]
[1761552108177,0.26296419,115510.0,115500.0,9.01594236]
[1761552111245,0.41532419,115510.0,115500.0,9.01594236]
[1761552120612,1.05118692,115510.0,115500.0,9.01594236]
[1761552121059,1.39118692,115510.0,115500.0,9.01594236]
[1761552121474,0.75532419,115510.0,115500.0,9.01594236]
[1761552121691,0.81971487,115510.0,115500.0,9.01594236]
[1761552121902,0.90953388,115510.0,115500.0,9.01594236]
[1761552122065,1.55039661,115510.0,115500.0,9.01594236]
[1761552123484,1.55139661,115510.0,115500.0,9.01594236]
[1761552123732,1.34740056,115510.0,115500.0,9.01594236]
[1761552124086,1.34640056,115510.0,115500.0,9.01594236]
[1761552124443,1.34340056,115510.0,115500.0,9.01594236]
[1761552124664,1.91213255,115510.0,115500.0,8.59430051]
[1761552124857,1.93063452,115510.0,115500.0,8.54236147]
[1761552125191,1.93063159,115510.0,115500.0,8.12616868]
[1761552125566,1.93063159,115510.0,115500.0,8.07422964]
[1761552125815,2.13513539,115510.0,115500.0,8.04826012]
[1761552126015,2.13513539,115510.0,115500.0,8.0222906]
[1761552126242,2.13513539,115510.0,115500.0,7.99632108]
[1761552126467,2.13513539,115510.0,115500.0,7.56819594]
[1761552126705,2.13513539,115510.0,115500.0,7.54222356]
[1761552126876,2.13513539,115510.0,115500.0,7.51625118]
[1761552127087,2.13513539,115510.0,115500.0,7.4902788]
[1761552127291,2.13513539,115510.0,115500.0,7.46430642]
[1761552127843,2.38353539,115510.0,115500.0,7.46430642]
[1761552128066,2.38353539,115510.0,115500.0,7.46121619]
[1761552129354,2.38353539,115510.0,115500.0,7.42700692]
[1761552130934,2.40952042,115510.0,115500.0,7.42700692]
[1761552131867,2.40952042,115510.0,115500.0,7.00060816]
[1761552132075,2.40952042,115510.0,115500.0,6.97463578]
[1761552133221,2.40952042,115510.0,115500.0,6.58264417]
[1761552133521,2.40952042,115510.0,115500.0,6.26323681]
[1761552134942,2.16112042,115510.0,115500.0,6.26323681]
[1761552135116,1.62053641,115510.0,115500.0,6.26323681]
[1761552135347,1.56594537,115510.0,115500.0,6.26323681]
[1761552137926,1.60212765,115510.0,115500.0,6.26323681]
[1761552139858,1.54668765,115510.0,115500.0,6.26323681]
[1761552140067,1.60208765,115510.0,115500.0,6.26323681]
[1761552140280,1.69190666,115510.0,115500.0,6.26323681]
[1761552141207,0.84785618,115510.0,115500.0,6.26323681]
[1761552141430,0.77725489,115510.0,115500.0,6.26323681]
[1761552141629,0.9110599,115510.0,115500.0,6.26323681]
[1761552142246,0.94724218,115510.0,115500.0,6.26323681]
[1761552142666,0.94569801,115510.0,115500.0,6.26323681]
[1761552143684,0.94369801,115510.0,115500.0,6.26323681]
[1761552143887,1.03351702,115510.0,115500.0,6.26323681]
[1761552144094,1.07821702,115510.0,115500.0,6.26323681]
[1761552144715,1.08121702,115510.0,115500.0,6.26323681]
[1761552145141,0.16995987,115510.0,115500.0,6.26323681]
[1761552145319,0.46940002,115510.0,115500.0,6.26323681]
[1761552146447,0.46840002,115510.0,115500.0,6.26323681]
[1761552146874,0.46940002,115510.0,115500.0,6.26323681]
[1761552147085,0.46640002,115510.0,115500.0,6.26323681]
[1761552147287,0.53589315,115510.0,115500.0,6.26323681]
[1761552148505,0.46640002,115510.0,115500.0,6.26323681]
[1761552148645,0.29325484,115510.0,115500.0,6.26323681]
[1761552149048,0.46640002,115510.0,115500.0,6.26323681]
[1761552149647,0.31412002,115510.0,115500.0,6.26323681]
[1761552149854,0.46640002,115510.0,115500.0,6.26323681]
[1761552150201,0.31412002,115510.0,115500.0,6.26323681]
[1761552150404,0.46640002,115510.0,115500.0,6.26323681]
[1761552151850,0.31412002,115510.0,115500.0,6.26323681]
[1761552152059,0.34865484,115510.0,115500.0,6.26323681]
[1761552152262,0.14097484,115510.0,115500.0,6.43639698]
[1761552152439,0.29325484,115510.0,115500.0,6.86809493]
[1761552153434,0.29225484,115510.0,115500.0,6.86809493]
[1761552153877,0.14097484,115510.0,115500.0,6.86809493]
[1761552154089,0.29325484,115510.0,115500.0,6.87009493]
[1761552154651,0.0527,115510.0,115500.0,6.87009493]
[1761552155225,0.0527,115510.0,115500.0,6.43839698]
[1761552155654,0.0527,115510.0,115500.0,6.87009493]
[1761552156828,0.0527,115510.0,115500.0,7.07009493]
[1761552157272,0.0527,115510.0,115500.0,6.87009493]
[1761552157685,0.0517,115510.0,115500.0,6.87009493]
[1761552157891,0.0517,115510.0,115500.0,7.20809493]
[1761552158103,0.0517,115510.0,115500.0,7.40809493]
[1761552158255,0.0517,115510.0,115500.0,7.41509493]
[1761552158463,0.0517,115510.0,115500.0,7.21509493]
[1761552158671,0.0517,115510.0,115500.0,7.41509493]
[1761552159919,0.0517,115510.0,115500.0,7.9539179]
[1761552161299,0.01849973,115550.0,115540.0,0.17310022]
[1761552161442,0.88100537,115580.0,115560.0,0.17307026]
[1761552161653,0.08981901,115570.0,115560.0,0.18176694]
[1761552162244,0.08981901,115570.0,115560.0,0.17307026]
[1761552162612,0.08981901,115570.0,115560.0,0.6670289]
[1761552162738,0.08981901,115570.0,115560.0,0.17307026]
[1761552162936,0.08981901,115570.0,115560.0,0.18176844]
[1761552163181,0.13903097,115570.0,115560.0,0.18176844]
[1761552163578,0.08981901,115570.0,115560.0,0.18176844]
[1761552163998,0.09581901,115570.0,115560.0,0.18176844]
[1761552164663,0.09681901,115570.0,115560.0,0.18176844]
[1761552169931,0.09681901,115570.0,115560.0,0.33408844]
[1761552170178,0.09681901,115570.0,115560.0,0.32539026]
[1761552173133,0.49499944,115590.0,115570.0,0.17305177]
[1761552173369,0.08981901,115580.0,115570.0,0.18174471]
[1761552174608,0.10181901,115580.0,115570.0,0.18174471]
[1761552175254,0.10281901,115580.0,115570.0,0.18174471]
[1761552176871,0.001,115580.0,115570.0,0.18174471]
[1761552177072,0.38624714,115590.0,115570.0,0.18174471]
[1761552177200,0.003,115580.0,115570.0,0.18174471]
[1761552177400,0.004,115580.0,115570.0,0.18174471]
[1761552177966,0.47606615,115590.0,115570.0,0.18174471]
[1761552178244,0.47706615,115590.0,115570.0,0.18174471]
[1761552178472,0.48006615,115590.0,115570.0,0.18174471]
[1761552179684,0.47706615,115590.0,115570.0,0.18174471]
[1761552180135,0.003,115580.0,115570.0,0.18174799]
[1761552180295,1.02622204,115590.0,115570.0,0.18174799]
[1761552180498,0.54915589,115580.0,115570.0,0.18174823]
[1761552180676,0.54915589,115580.0,115570.0,0.17305529]
[1761552180880,0.08981901,115580.0,115570.0,0.18174973]
[1761552181320,0.09281901,115580.0,115570.0,0.18174973]
[1761552181676,0.09381901,115580.0,115570.0,0.18174973]
[1761552183376,0.004,115580.0,115570.0,0.18174973]
[1761552190661,0.004,115580.0,115570.0,0.66673017]
[1761552190859,0.004,115580.0,115570.0,0.65803573]
[1761552191492,0.003,115580.0,115570.0,0.65803573]
[1761552191912,0.004,115580.0,115570.0,0.65803573]
[1761552192040,0.004,115580.0,115570.0,0.17305529]
[1761552192238,0.004,115580.0,115570.0,0.18174973]
[1761552192604,0.001,115580.0,115570.0,0.18174973]
[1761552192731,0.002,115580.0,115570.0,0.18174973]
[1761552194502,0.48698044,115580.0,115570.0,0.18174973]
[1761552195680,0.002,115580.0,115570.0,0.18174973]
[1761552195874,0.78602204,115580.0,115570.0,0.00869444]
[1761552196083,0.83965877,115580.0,115560.0,0.17307026]
[1761552196278,0.72691945,115570.0,115560.0,0.17307026]
[1761552197124,0.89997474,115570.0,115550.0,0.18172901]
[1761552197306,0.4149943,115570.0,115560.0,0.17307026]
[1761552197508,0.4149943,115570.0,115560.0,0.17507026]
[1761552198739,0.89997474,115570.0,115560.0,0.17507026]
[1761552198954,0.93615702,115570.0,115560.0,0.002]
[1761552199155,1.42113746,115570.0,115560.0,0.002]
[1761552199371,0.93615702,115570.0,115560.0,0.002]
[1761552199770,0.17308035,115560.0,115540.0,0.18175523]
[1761552199998,0.81018568,115550.0,115530.0,0.1731152]
[1761552200167,0.81018568,115550.0,115530.0,0.18182311]
[1761552200572,0.48498044,115540.0,115530.0,0.1731152]
[1761552200777,0.48498044,115540.0,115510.0,0.17309102]
[1761552200778,0.17311595,115530.0,115510.0,0.17309102]
[1761552200956,0.15212,115520.0,115510.0,0.17309102]
[1761552201157,0.63710044,115520.0,115500.0,6.44496803]
[1761552201381,0.81023063,115520.0,115510.0,0.17314518]
[1761552201580,0.63710044,115520.0,115510.0,0.17314518]
[1761552202261,0.81023063,115520.0,115500.0,6.44496803]
[1761552202468,0.81023063,115520.0,115510.0,0.17314518]
[1761552202680,0.32525019,115520.0,115510.0,0.17314518]
[1761552202875,0.15212,115520.0,115510.0,0.17314518]
[1761552203183,0.63710044,115520.0,115510.0,0.17714518]
[1761552203385,0.15212,115520.0,115510.0,0.17314518]
[1761552203589,0.15212,115520.0,115510.0,0.17714518]
[1761552204368,0.14517901,115530.0,115520.0,0.17313019]
[1761552204523,0.29737901,115530.0,115520.0,0.17313019]
[1761552205382,0.47049421,115530.0,115520.0,0.18184334]
[1761552205509,0.47049421,115530.0,115520.0,0.17313019]
[1761552206233,0.08981901,115530.0,115520.0,0.66682378]
[1761552206475,0.29737901,115530.0,115520.0,0.17313019]
[1761552206608,0.29737901,115530.0,115520.0,0.18384334]
[1761552208315,0.08981901,115530.0,115520.0,0.18384334]
[1761552208516,0.24201901,115530.0,115520.0,0.18384334]
[1761552208984,0.41513421,115530.0,115520.0,0.18384334]
[1761552209844,0.90011465,115530.0,115520.0,0.002]
[1761552212317,0.41513421,115530.0,115520.0,0.17513019]
[1761552212518,0.90011465,115530.0,115520.0,0.17513019]
[1761552213470,0.90011465,115530.0,115520.0,0.002]
[1761552216202,0.90011465,115530.0,115520.0,0.17513019]
[1761552216419,0.41513421,115530.0,115520.0,0.17513019]
[1761552216641,0.90011465,115530.0,115520.0,0.17513019]
[1761552217996,0.41513421,115530.0,115520.0,0.17513019]
[1761552218198,0.90011465,115530.0,115520.0,0.17513019]
[1761552218607,0.41513421,115530.0,115520.0,0.17513019]
[1761552218851,0.90011465,115530.0,115520.0,0.17513019]
[1761552219619,0.41513421,115530.0,115520.0,0.17513019]
[1761552219815,0.08981901,115530.0,115520.0,0.66882378]
[1761552220018,0.24197901,115530.0,115520.0,0.66011063]
[1761552220219,0.18170805,115570.0,115540.0,0.17308869]
[1761552220417,0.08981901,115560.0,115550.0,0.18178697]
[1761552220723,0.24197901,115560.0,115550.0,0.18178697]
[1761552222938,0.24397901,115560.0,115550.0,0.18178697]
[1761552223323,0.24197901,115560.0,115550.0,0.18178697]
[1761552223524,0.84628907,115560.0,115550.0,0.00970192]
[1761552223723,0.84628907,115560.0,115550.0,0.001]
[1761552223724,0.88247135,115560.0,115550.0,0.001]
[1761552225047,0.88347135,115560.0,115550.0,0.001]
[1761552225634,0.17308714,115550.0,115540.0,0.1818029]
[1761552225839,0.26290425,115550.0,115540.0,0.1818029]
[1761552227386,0.09281901,115550.0,115540.0,0.1818029]
[1761552227942,0.26690425,115550.0,115540.0,0.1818029]
[1761552228139,0.09381901,115550.0,115540.0,0.1818029]
[1761552228566,0.24601901,115550.0,115540.0,0.1818029]
[1761552228769,0.004,115550.0,115540.0,0.1818029]
[1761552229420,0.004,115550.0,115540.0,0.6130427]
[1761552229620,0.004,115550.0,115540.0,0.60434002]
[1761552230094,0.004,115550.0,115540.0,0.17310022]
[1761552230314,0.004,115550.0,115540.0,0.18180589]
[1761552239727,0.004,115550.0,115540.0,0.61304569]
[1761552239956,0.004,115550.0,115540.0,0.60434002]
[1761552240785,0.003,115550.0,115540.0,0.17310022]
[1761552241010,0.69714405,115550.0,115530.0,0.18177077]
[1761552241227,0.69714405,115550.0,115520.0,0.18178669]
[1761552241228,0.69415903,115540.0,115520.0,0.18178669]
[1761552241448,0.604355,115530.0,115520.0,0.17313019]
[1761552241643,0.26293421,115530.0,115510.0,0.18180243]
[1761552241900,0.41509421,115530.0,115520.0,0.17313019]
[1761552242966,0.41509421,115530.0,115520.0,0.17613019]
[1761552243106,0.41509421,115530.0,115520.0,0.17313019]
[1761552243993,0.41509421,115530.0,115520.0,0.17613019]
[1761552244432,0.41509421,115530.0,115520.0,0.003]
[1761552244872,0.41509421,115530.0,115520.0,0.17613019]
[1761552245640,0.41509421,115530.0,115520.0,0.003]
[1761552246538,0.88251629,115530.0,115520.0,0.003]
[1761552246992,0.90848922,115530.0,115520.0,0.003]
[1761552247451,0.17314518,115510.0,115500.0,6.26323681]
[1761552247673,0.32534518,115510.0,115500.0,6.26323681]
[1761552248358,0.41516419,115510.0,115500.0,6.26323681]
[1761552248802,0.41516419,115510.0,115500.0,6.43639698]
[1761552249883,0.41516419,115510.0,115500.0,6.43939698]
[1761552250095,0.41516419,115510.0,115500.0,6.26623681]
[1761552256654,0.41516419,115510.0,115500.0,6.43939698]
[1761552257544,0.41516419,115510.0,115500.0,6.26623681]
[1761552258603,0.41516419,115510.0,115500.0,6.43939698]
[1761552259697,0.41516419,115510.0,115500.0,6.26623681]
[1761552262302,0.41516419,115510.0,115500.0,6.43939698]
[1761552263866,0.24201901,115510.0,115500.0,6.43939698]
[1761552264067,0.41516419,115510.0,115500.0,6.43939698]
[1761552264767,0.24201901,115510.0,115500.0,6.43939698]
[1761552264970,0.41516419,115510.0,115500.0,6.43939698]
[1761552265613,0.24201901,115510.0,115500.0,6.43939698]
[1761552267008,0.41516419,115510.0,115500.0,6.43939698]
[1761552269026,0.24201901,115510.0,115500.0,6.43939698]
[1761552274733,0.41516419,115510.0,115500.0,6.26623681]
[1761552274920,0.41516419,115510.0,115500.0,6.43939698]
[1761552278398,0.41516419,115510.0,115500.0,6.26623681]
[1761552282086,0.90077665,115510.0,115500.0,6.26623681]
[1761552282696,0.95613665,115510.0,115500.0,6.26623681]
[1761552283104,0.47052419,115510.0,115500.0,6.26623681]
[1761552283309,0.98211201,115510.0,115500.0,6.26623681]
[1761552283910,0.98211201,115510.0,115500.0,6.26323681]
[1761552286808,0.49649955,115510.0,115500.0,6.26323681]
[1761552286998,0.98211201,115510.0,115500.0,6.26323681]
[1761552288823,0.49649955,115510.0,115500.0,6.26323681]
[1761552289172,0.98211201,115510.0,115500.0,6.26323681]
[1761552291497,0.49649955,115510.0,115500.0,6.26323681]
[1761552291669,0.98211201,115510.0,115500.0,6.26323681]
[1761552293554,0.62250084,115510.0,115500.0,6.26323681]
[1761552293746,1.1081133,115510.0,115500.0,6.26323681]
[1761552293923,1.01829429,115510.0,115500.0,6.26323681]
[1761552295458,1.01929429,115510.0,115500.0,6.26323681]
[1761552295690,1.02229429,115510.0,115500.0,6.26323681]
[1761552297754,1.84790675,115510.0,115500.0,6.26323681]
[1761552299464,1.84390675,115510.0,115500.0,6.26323681]
[1761552299666,1.93472576,115510.0,115500.0,6.26323681]
[1761552299869,1.94272576,115510.0,115500.0,6.26323681]
[1761552300818,0.97150084,115510.0,115500.0,6.26323681]
[1761552301012,1.2495533,115510.0,115500.0,6.26323681]
[1761552301222,1.15973429,115510.0,115500.0,6.26323681]
[1761552301634,1.36729429,115510.0,115500.0,6.26323681]
[1761552302148,1.35929429,115510.0,115500.0,6.26323681]
[1761552302492,1.36129429,115510.0,115500.0,6.26323681]
[1761552302623,1.4501133,115510.0,115500.0,6.26323681]
[1761552303322,1.2435533,115510.0,115500.0,6.26323681]
[1761552303522,1.4511533,115510.0,115500.0,6.26323681]
[1761552304452,1.42517794,115510.0,115500.0,6.26323681]
[1761552305329,0.64214647,115510.0,115500.0,6.43639698]
[1761552305542,0.79434647,115510.0,115500.0,6.43639698]
[1761552305746,0.26596419,115510.0,115500.0,6.43639698]
[1761552305944,0.41816419,115510.0,115500.0,6.43639698]
[1761552306151,0.41816419,115510.0,115500.0,6.26323681]
[1761552306330,0.41816419,115510.0,115500.0,6.43639698]
[1761552306537,0.41716419,115510.0,115500.0,6.43639698]
[1761552306727,0.24401901,115510.0,115500.0,6.92200944]
[1761552306928,0.24301901,115510.0,115500.0,6.43639698]
[1761552307184,0.24301901,115510.0,115500.0,6.92200944]
[1761552307890,0.1532,115510.0,115500.0,6.92200944]
[1761552308089,0.001,115510.0,115500.0,7.4076219]
[1761552308844,0.06296,115530.0,115520.0,0.17313019]
[1761552309059,0.15277901,115530.0,115520.0,0.6674558]
[1761552309378,0.15277901,115530.0,115520.0,0.65874265]
[1761552309582,0.5217395,115550.0,115520.0,0.65874265]
[1761552309782,0.5217395,115550.0,115540.0,0.65871021]
[1761552309783,0.08981901,115550.0,115540.0,0.65871021]
[1761552309949,0.24201901,115550.0,115540.0,0.65871021]
[1761552310150,0.24201901,115550.0,115540.0,0.17309775]
[1761552310356,0.24201901,115550.0,115540.0,0.65871021]
[1761552310959,0.24201901,115550.0,115540.0,0.17310022]
[1761552311276,0.72763147,115550.0,115540.0,0.18180589]
[1761552311484,0.72763147,115550.0,115540.0,0.17310022]
[1761552311690,0.24201901,115550.0,115540.0,0.17310022]
[1761552312114,0.24201901,115550.0,115540.0,0.18180589]
[1761552312449,0.24301901,115550.0,115540.0,0.18180589]
[1761552312947,0.24201901,115550.0,115540.0,0.18180589]
[1761552313814,0.24201901,115550.0,115540.0,0.18480589]
[1761552316068,0.41510425,115550.0,115540.0,0.18480589]
[1761552316269,0.24201901,115550.0,115540.0,0.18480589]
[1761552316637,0.72763147,115550.0,115540.0,0.18480589]
[1761552318930,0.90071671,115550.0,115540.0,0.18480589]
[1761552319215,0.90071671,115550.0,115540.0,0.01170567]
[1761552319419,0.90071671,115550.0,115540.0,0.17610022]
[1761552319550,0.90071671,115550.0,115540.0,0.003]
[1761552319764,0.90071671,115550.0,115540.0,0.17610022]
[1761552319962,0.72763147,115550.0,115540.0,0.17610022]
[1761552320215,0.72763147,115550.0,115540.0,0.18480589]
[1761552321020,0.18172492,115560.0,115540.0,0.18480589]
[1761552321183,0.15216,115550.0,115540.0,0.18480589]
[1761552321390,0.8108577,115550.0,115540.0,0.18480589]
[1761552321837,0.63777246,115550.0,115540.0,0.18480589]
[1761552322463,0.64777246,115550.0,115540.0,0.18480589]
[1761552324870,0.16216,115550.0,115540.0,0.18480589]
[1761552325118,0.64777246,115550.0,115540.0,0.18480589]
[1761552329628,0.91067671,115550.0,115540.0,0.01170567]
[1761552329839,0.91067671,115550.0,115540.0,0.17610022]
[1761552330057,0.42506425,115550.0,115540.0,0.17610022]
[1761552330244,0.91067671,115550.0,115540.0,0.17610022]
[1761552330440,0.91067671,115550.0,115540.0,0.003]
[1761552331466,0.42506425,115550.0,115540.0,0.17610022]
[1761552331689,0.91067671,115550.0,115540.0,0.17610022]
[1761552331866,0.91067671,115550.0,115540.0,0.003]
[1761552336023,0.91067671,115550.0,115540.0,0.17610022]
[1761552336804,0.48038425,115550.0,115540.0,0.17610022]
[1761552336937,0.96599671,115550.0,115540.0,0.17610022]
[1761552337344,0.96599671,115550.0,115540.0,0.003]
[1761552338238,0.96599671,115550.0,115540.0,0.17610022]
[1761552338587,0.48038425,115550.0,115540.0,0.17610022]
[1761552338780,0.91063671,115550.0,115540.0,0.18480589]
[1761552338988,0.96599671,115550.0,115540.0,0.17610022]
[1761552339195,0.96599671,115550.0,115540.0,0.003]
[1761552339594,0.77705526,115550.0,115540.0,0.003]
[1761552339793,0.98453526,115550.0,115540.0,0.003]
[1761552340010,0.77705526,115550.0,115540.0,0.003]
[1761552340357,0.98453526,115550.0,115540.0,0.003]
[1761552340740,1.07435427,115550.0,115540.0,0.003]
[1761552341147,1.11053655,115550.0,115540.0,0.003]
[1761552341775,0.62492409,115550.0,115540.0,0.003]
[1761552341979,1.11053655,115550.0,115540.0,0.003]
[1761552342182,0.1731152,115530.0,115520.0,0.18178642]
[1761552342389,0.90066667,115530.0,115520.0,0.18178642]
[1761552342858,0.90066667,115530.0,115520.0,0.18178669]
[1761552343638,0.90066667,115530.0,115520.0,0.18478669]
[1761552343837,0.8466283,115530.0,115520.0,0.18478669]
[1761552344002,0.8466283,115530.0,115520.0,0.003]
[1761552344357,0.8466283,115530.0,115520.0,0.17613019]
[1761552344553,0.41505421,115530.0,115520.0,0.17613019]
[1761552344756,0.8466283,115530.0,115520.0,0.17613019]
[1761552345058,0.8466283,115530.0,115520.0,0.003]
[1761552345383,0.8466283,115530.0,115520.0,0.17613019]
[1761552345660,0.92506412,115530.0,115520.0,0.17613019]
[1761552346010,0.8466283,115530.0,115520.0,0.17613019]
[1761552346666,0.6735131,115530.0,115520.0,0.17613019]
[1761552346858,0.24193901,115530.0,115520.0,0.18484334]
[1761552347118,0.29729901,115530.0,115520.0,0.18484334]
[1761552349940,0.08981901,115530.0,115520.0,0.18484334]
[1761552350196,0.24193901,115530.0,115520.0,0.18484334]
[1761552353635,0.1917395,115550.0,115530.0,0.1731152]
[1761552353842,0.15212,115540.0,115530.0,0.1731152]
[1761552354039,0.28155994,115550.0,115540.0,0.17310022]